[Event "Titled Tuesday Blitz April 18 Early 2023"]
[White "Srihari L R"]
[Black "Horak, Martin"]
[WhiteFideId "46617116"]
[BlackFideId "367095"]
[WhiteElo "2334"]
[BlackElo "2091"]
[Result "1-0"]
[Round "06"]
[TimeControl "180+2"]
[Date "2023.04.18"]
[WhiteClock "0:01:14"]
[BlackClock "0:00:21"]

1. c4 {[%clk 0:03:00]}  Nf6 {[%clk 0:02:59]} 2. Nc3 {[%clk 0:02:51]}  g6 {[%clk 0:02:58]} 3. g3 {[%clk 0:02:49]}  Bg7 {[%clk 0:02:58]} 4. Bg2 {[%clk 0:02:50]}  O-O {[%clk 0:02:59]} 5. Nf3 {[%clk 0:02:49]}  c5 {[%clk 0:02:59]} 6. O-O {[%clk 0:02:49]}  Nc6 {[%clk 0:03:00]} 7. d4 {[%clk 0:02:45]}  cxd4 {[%clk 0:03:01]} 8. Nxd4 {[%clk 0:02:46]}  d6 {[%clk 0:03:02]} 9. Nxc6 {[%clk 0:02:45]}  bxc6 {[%clk 0:03:03]} 10. Bxc6 {[%clk 0:02:45]}  Bh3 {[%clk 0:03:04]} 11. Bxa8 {[%clk 0:02:45]}  Qxa8 {[%clk 0:03:03]} 12. f3 {[%clk 0:02:45]}  Bxf1 {[%clk 0:03:04]} 13. Kxf1 {[%clk 0:02:45]}  Rc8 {[%clk 0:03:05]} 14. Qd3 {[%clk 0:02:45]}  Qc6 {[%clk 0:03:05]} 15. b3 {[%clk 0:02:46]}  d5 {[%clk 0:03:05]} 16. Nxd5 {[%clk 0:02:36]}  Nxd5 {[%clk 0:02:59]} 17. cxd5 {[%clk 0:02:36]}  Qd7 {[%clk 0:02:16]} 18. Rb1 {[%clk 0:02:35]}  Rc5 {[%clk 0:02:12]} 19. Kg2 {[%clk 0:01:52]}  Rxd5 {[%clk 0:02:10]} 20. Qc2 {[%clk 0:01:51]}  h5 {[%clk 0:01:54]} 21. h4 {[%clk 0:01:47]}  Be5 {[%clk 0:01:15]} 22. Be3 {[%clk 0:01:46]}  a5 {[%clk 0:01:09]} 23. Rc1 {[%clk 0:01:44]}  Qd6 {[%clk 0:01:09]} 24. Bf2 {[%clk 0:01:18]}  Rd2 {[%clk 0:01:08]} 25. Qc8+ {[%clk 0:01:18]}  Kg7 {[%clk 0:01:07]} 26. Rc2 {[%clk 0:01:18]}  Rd1 {[%clk 0:01:03]} 27. Qc5 {[%clk 0:01:17]}  Ra1 {[%clk 0:00:23]} 28. Qxd6 {[%clk 0:01:15]}  Bxd6 {[%clk 0:00:22]} 29. Bd4+ {[%clk 0:01:14]}  f6 {[%clk 0:00:21]} 30. Bxa1 {[%clk 0:01:14]} 1-0


[Site "https://www.chess.com"]

[Event "Titled Tuesday Blitz April 18 Early 2023"]
[White "Djordjevic, Vuk"]
[Black "Osinenko, Anton"]
[WhiteFideId "902098"]
[BlackFideId "4158970"]
[WhiteElo "2452"]
[BlackElo "2294"]
[Result "1-0"]
[Round "06"]
[TimeControl "180+2"]
[Date "2023.04.18"]
[WhiteClock "0:00:09"]
[BlackClock "0:00:05"]

1. e4 {[%clk 0:03:00]}  Nc6 {[%clk 0:03:00]} 2. d4 {[%clk 0:02:53]}  d5 {[%clk 0:03:00]} 3. Bf4 {[%clk 0:02:42]}  dxe4 {[%clk 0:02:39]} 4. d5 {[%clk 0:02:42]}  e5 {[%clk 0:02:39]} 5. Bg3 {[%clk 0:02:38]}  Nce7 {[%clk 0:02:28]} 6. Nc3 {[%clk 0:02:30]}  Nf6 {[%clk 0:02:16]} 7. Bb5+ {[%clk 0:02:09]}  Bd7 {[%clk 0:01:26]} 8. Bxe5 {[%clk 0:02:03]}  Bxb5 {[%clk 0:01:08]} 9. Bxf6 {[%clk 0:02:02]}  gxf6 {[%clk 0:00:54]} 10. Nxb5 {[%clk 0:02:01]}  a6 {[%clk 0:00:55]} 11. Nc3 {[%clk 0:01:59]}  f5 {[%clk 0:00:53]} 12. Nge2 {[%clk 0:01:51]}  Bg7 {[%clk 0:00:51]} 13. Nf4 {[%clk 0:01:47]}  Qd6 {[%clk 0:00:47]} 14. Qd2 {[%clk 0:01:29]}  O-O-O {[%clk 0:00:37]} 15. O-O-O {[%clk 0:01:08]}  Bh6 {[%clk 0:00:37]} 16. g3 {[%clk 0:01:01]}  Ng6 {[%clk 0:00:32]} 17. Nce2 {[%clk 0:01:00]}  Rhe8 {[%clk 0:00:25]} 18. Kb1 {[%clk 0:00:56]}  Qc5 {[%clk 0:00:22]} 19. Qe3 {[%clk 0:00:53]}  Qd6 {[%clk 0:00:16]} 20. c4 {[%clk 0:00:51]}  Nxf4 {[%clk 0:00:14]} 21. gxf4 {[%clk 0:00:49]}  Rg8 {[%clk 0:00:15]} 22. Nd4 {[%clk 0:00:40]}  Qxf4 {[%clk 0:00:11]} 23. Qh3 {[%clk 0:00:34]}  Kb8 {[%clk 0:00:08]} 24. Nxf5 {[%clk 0:00:33]}  Bg5 {[%clk 0:00:08]} 25. Rhf1 {[%clk 0:00:24]}  Bf6 {[%clk 0:00:08]} 26. Ng3 {[%clk 0:00:14]}  Rg6 {[%clk 0:00:05]} 27. Qxh7 {[%clk 0:00:12]}  Qe5 {[%clk 0:00:01]} 28. Rd2 {[%clk 0:00:11]}  Rg7 {[%clk 0:00:02]} 29. Qh5 {[%clk 0:00:11]}  Rg5 {[%clk 0:00:02]} 30. Qe2 {[%clk 0:00:11]}  b5 {[%clk 0:00:02]} 31. Nxe4 {[%clk 0:00:11]}  bxc4 {[%clk 0:00:01]} 32. Nxg5 {[%clk 0:00:10]}  Qxe2 {[%clk 0:00:01]} 33. Rxe2 {[%clk 0:00:10]}  Bxg5 {[%clk 0:00:02]} 34. Rd1 {[%clk 0:00:11]}  Kb7 {[%clk 0:00:01]} 35. Re4 {[%clk 0:00:11]}  Kb6 {[%clk 0:00:01]} 36. Rxc4 {[%clk 0:00:11]}  c6 {[%clk 0:00:02]} 37. Rxc6+ {[%clk 0:00:11]}  Kb5 {[%clk 0:00:03]} 38. Rd4 {[%clk 0:00:09]}  Rg8 {[%clk 0:00:02]} 39. Rg4 {[%clk 0:00:05]}  Rg7 {[%clk 0:00:02]} 40. h4 {[%clk 0:00:06]}  Bh6 {[%clk 0:00:01]} 41. Rxg7 {[%clk 0:00:06]}  Bxg7 {[%clk 0:00:02]} 42. Kc2 {[%clk 0:00:06]}  Be5 {[%clk 0:00:03]} 43. h5 {[%clk 0:00:07]}  a5 {[%clk 0:00:03]} 44. h6 {[%clk 0:00:07]}  a4 {[%clk 0:00:04]} 45. h7 {[%clk 0:00:08]}  Bd4 {[%clk 0:00:04]} 46. f4 {[%clk 0:00:08]}  Bg7 {[%clk 0:00:03]} 47. b3 {[%clk 0:00:08]}  axb3+ {[%clk 0:00:04]} 48. axb3 {[%clk 0:00:09]}  Kb4 {[%clk 0:00:04]} 49. d6 {[%clk 0:00:09]}  f5 {[%clk 0:00:05]} 50. d7 {[%clk 0:00:09]} 1-0


[Site "https://www.chess.com"]

[Event "Titled Tuesday Blitz April 18 Early 2023"]
[White "Bilych, Olexiy"]
[Black "Gubajdullin, Alexei"]
[WhiteFideId "14156504"]
[BlackFideId "4141202"]
[WhiteElo "2320"]
[BlackElo "2279"]
[Result "0-1"]
[Round "06"]
[TimeControl "180+2"]
[Date "2023.04.18"]
[WhiteClock "0:00:01"]
[BlackClock "0:00:44"]

1. d4 {[%clk 0:03:00]}  Nf6 {[%clk 0:02:59]} 2. c4 {[%clk 0:03:00]}  g6 {[%clk 0:02:59]} 3. Nc3 {[%clk 0:03:00]}  Bg7 {[%clk 0:02:59]} 4. e4 {[%clk 0:03:00]}  d6 {[%clk 0:02:59]} 5. Be2 {[%clk 0:03:00]}  O-O {[%clk 0:02:59]} 6. Be3 {[%clk 0:03:01]}  Na6 {[%clk 0:02:59]} 7. g4 {[%clk 0:02:53]}  c5 {[%clk 0:02:58]} 8. d5 {[%clk 0:02:53]}  e6 {[%clk 0:02:58]} 9. g5 {[%clk 0:02:50]}  Nh5 {[%clk 0:02:57]} 10. Bxh5 {[%clk 0:02:45]}  gxh5 {[%clk 0:02:57]} 11. h4 {[%clk 0:02:36]}  exd5 {[%clk 0:02:54]} 12. cxd5 {[%clk 0:02:37]}  Bg4 {[%clk 0:02:51]} 13. f3 {[%clk 0:02:35]}  Bd7 {[%clk 0:02:51]} 14. Nge2 {[%clk 0:02:30]}  b5 {[%clk 0:02:38]} 15. Nf4 {[%clk 0:02:28]}  b4 {[%clk 0:02:37]} 16. Nce2 {[%clk 0:02:28]}  Bxb2 {[%clk 0:02:31]} 17. Nxh5 {[%clk 0:02:25]}  Bb5 {[%clk 0:02:10]} 18. Rb1 {[%clk 0:02:13]}  Bxe2 {[%clk 0:02:08]} 19. Qxe2 {[%clk 0:02:09]}  Bc3+ {[%clk 0:02:07]} 20. Bd2 {[%clk 0:02:07]}  Bd4 {[%clk 0:01:59]} 21. Qxa6 {[%clk 0:02:05]}  f5 {[%clk 0:01:40]} 22. gxf6 {[%clk 0:01:58]}  Qe8 {[%clk 0:01:38]} 23. Ng7 {[%clk 0:01:32]}  Qe5 {[%clk 0:01:37]} 24. Nf5 {[%clk 0:01:33]}  Rae8 {[%clk 0:01:16]} 25. Qb7 {[%clk 0:01:14]}  Qxf6 {[%clk 0:01:14]} 26. Nxd4 {[%clk 0:01:06]}  Qxd4 {[%clk 0:01:13]} 27. Qa6 {[%clk 0:00:10]}  Rxf3 {[%clk 0:01:09]} 28. Kd1 {[%clk 0:00:05]}  Rd3 {[%clk 0:01:06]} 29. Rh2 {[%clk 0:00:04]}  Qxe4 {[%clk 0:00:56]} 30. Qxd6 {[%clk 0:00:05]}  Rf3 {[%clk 0:00:49]} 31. Rg2+ {[%clk 0:00:05]}  Kf7 {[%clk 0:00:46]} 32. Qd7+ {[%clk 0:00:04]}  Re7 {[%clk 0:00:46]} 33. Qb5 {[%clk 0:00:01]}  Qxb1+ {[%clk 0:00:44]} 0-1


[Site "https://www.chess.com"]

[Event "Titled Tuesday Blitz April 18 Early 2023"]
[White "Ljukin, Sergei"]
[Black "Aaditya Dhingra"]
[WhiteFideId "14102200"]
[BlackFideId "25678191"]
[WhiteElo "2312"]
[BlackElo "2083"]
[Result "0-1"]
[Round "06"]
[TimeControl "180+2"]
[Date "2023.04.18"]
[WhiteClock "0:00:03"]
[BlackClock "0:00:28"]

1. e4 {[%clk 0:02:52]}  c6 {[%clk 0:02:59]} 2. d4 {[%clk 0:02:52]}  d5 {[%clk 0:02:59]} 3. e5 {[%clk 0:02:53]}  Bf5 {[%clk 0:02:59]} 4. Nd2 {[%clk 0:02:53]}  e6 {[%clk 0:02:58]} 5. Nb3 {[%clk 0:02:53]}  Nd7 {[%clk 0:02:57]} 6. Nf3 {[%clk 0:02:53]}  h6 {[%clk 0:02:56]} 7. Be2 {[%clk 0:02:53]}  Ne7 {[%clk 0:02:55]} 8. O-O {[%clk 0:02:53]}  g5 {[%clk 0:02:54]} 9. h3 {[%clk 0:02:52]}  Bh7 {[%clk 0:02:49]} 10. Nh2 {[%clk 0:02:51]}  Nf5 {[%clk 0:02:45]} 11. f4 {[%clk 0:02:48]}  gxf4 {[%clk 0:02:43]} 12. Bxf4 {[%clk 0:02:47]}  c5 {[%clk 0:02:42]} 13. dxc5 {[%clk 0:02:26]}  Bg7 {[%clk 0:02:35]} 14. Nf3 {[%clk 0:02:16]}  Qc7 {[%clk 0:02:32]} 15. Bd3 {[%clk 0:01:33]}  Nxc5 {[%clk 0:02:28]} 16. Bxf5 {[%clk 0:01:23]}  Bxf5 {[%clk 0:02:27]} 17. Nbd4 {[%clk 0:01:24]}  Bg6 {[%clk 0:01:54]} 18. Nb5 {[%clk 0:01:24]}  Qb6 {[%clk 0:01:54]} 19. Nd6+ {[%clk 0:01:24]}  Kd7 {[%clk 0:01:51]} 20. Be3 {[%clk 0:01:15]}  Qc6 {[%clk 0:01:43]} 21. c4 {[%clk 0:01:06]}  Ne4 {[%clk 0:01:37]} 22. cxd5 {[%clk 0:00:59]}  Qxd5 {[%clk 0:01:36]} 23. Nxe4 {[%clk 0:00:50]}  Bxe4 {[%clk 0:01:32]} 24. Qa4+ {[%clk 0:00:50]}  b5 {[%clk 0:01:28]} 25. Qa6 {[%clk 0:00:26]}  Qc6 {[%clk 0:01:08]} 26. Qa3 {[%clk 0:00:19]}  Rhc8 {[%clk 0:01:02]} 27. Ng5 {[%clk 0:00:18]}  Bf5 {[%clk 0:00:55]} 28. Nxf7 {[%clk 0:00:16]}  Bf8 {[%clk 0:00:53]} 29. Rad1+ {[%clk 0:00:14]}  Ke8 {[%clk 0:00:51]} 30. Nd6+ {[%clk 0:00:15]}  Bxd6 {[%clk 0:00:51]} 31. Rxd6 {[%clk 0:00:14]}  Qc4 {[%clk 0:00:46]} 32. Qa6 {[%clk 0:00:10]}  Rc7 {[%clk 0:00:34]} 33. Kh1 {[%clk 0:00:06]}  Qxf1+ {[%clk 0:00:33]} 34. Kh2 {[%clk 0:00:06]}  Kf7 {[%clk 0:00:30]} 35. Bxh6 {[%clk 0:00:03]}  Rg8 {[%clk 0:00:28]} 0-1


[Site "https://www.chess.com"]

[Event "Titled Tuesday Blitz April 18 Early 2023"]
[White "Mendez Fortes, Eduardo Jesus"]
[Black "Rodchenkov, Sergey D."]
[WhiteFideId "3502376"]
[BlackFideId "4168712"]
[WhiteElo "2307"]
[BlackElo "2277"]
[Result "0-1"]
[Round "06"]
[TimeControl "180+2"]
[Date "2023.04.18"]
[WhiteClock "0:00:20"]
[BlackClock "0:00:09"]

1. e4 {[%clk 0:03:00]}  c5 {[%clk 0:03:00]} 2. Nf3 {[%clk 0:03:01]}  d6 {[%clk 0:03:00]} 3. d4 {[%clk 0:03:01]}  cxd4 {[%clk 0:03:01]} 4. Nxd4 {[%clk 0:03:02]}  Nf6 {[%clk 0:03:02]} 5. Nc3 {[%clk 0:03:03]}  a6 {[%clk 0:03:02]} 6. Bg5 {[%clk 0:03:03]}  e6 {[%clk 0:03:03]} 7. f4 {[%clk 0:03:02]}  h6 {[%clk 0:03:03]} 8. Bh4 {[%clk 0:03:03]}  Qb6 {[%clk 0:03:03]} 9. a3 {[%clk 0:03:02]}  Nbd7 {[%clk 0:03:02]} 10. Bf2 {[%clk 0:03:02]}  Qc7 {[%clk 0:03:01]} 11. Qf3 {[%clk 0:03:02]}  b5 {[%clk 0:03:00]} 12. O-O-O {[%clk 0:03:02]}  Bb7 {[%clk 0:03:01]} 13. Bd3 {[%clk 0:03:02]}  Be7 {[%clk 0:02:58]} 14. Rhe1 {[%clk 0:03:02]}  Nc5 {[%clk 0:02:59]} 15. Qh3 {[%clk 0:03:01]}  Rc8 {[%clk 0:02:36]} 16. g4 {[%clk 0:02:59]}  d5 {[%clk 0:02:34]} 17. e5 {[%clk 0:02:53]}  Nfe4 {[%clk 0:02:34]} 18. Nxe4 {[%clk 0:02:49]}  Nxe4 {[%clk 0:02:34]} 19. Bxe4 {[%clk 0:02:47]}  dxe4 {[%clk 0:02:35]} 20. f5 {[%clk 0:02:25]}  exf5 {[%clk 0:01:34]} 21. e6 {[%clk 0:02:15]}  Bg5+ {[%clk 0:01:11]} 22. Kb1 {[%clk 0:02:13]}  f4 {[%clk 0:00:58]} 23. exf7+ {[%clk 0:02:09]}  Qxf7 {[%clk 0:00:56]} 24. Nf5 {[%clk 0:02:07]}  O-O {[%clk 0:00:52]} 25. Bd4 {[%clk 0:01:58]}  Qc4 {[%clk 0:00:20]} 26. Qg2 {[%clk 0:01:30]}  f3 {[%clk 0:00:15]} 27. Qf2 {[%clk 0:01:28]}  Rxf5 {[%clk 0:00:06]} 28. gxf5 {[%clk 0:01:27]}  b4 {[%clk 0:00:07]} 29. b3 {[%clk 0:01:19]}  Qb5 {[%clk 0:00:05]} 30. a4 {[%clk 0:01:19]}  Qxf5 {[%clk 0:00:05]} 31. Rg1 {[%clk 0:01:17]}  Bf6 {[%clk 0:00:05]} 32. Qd2 {[%clk 0:01:11]}  Rc7 {[%clk 0:00:04]} 33. Qxb4 {[%clk 0:01:06]}  f2 {[%clk 0:00:03]} 34. Rgf1 {[%clk 0:00:31]}  e3 {[%clk 0:00:04]} 35. Rc1 {[%clk 0:00:31]}  e2 {[%clk 0:00:03]} 36. Rxf2 {[%clk 0:00:29]}  Qe4 {[%clk 0:00:02]} 37. Bxf6 {[%clk 0:00:27]}  Qxb4 {[%clk 0:00:02]} 38. Rxe2 {[%clk 0:00:22]}  gxf6 {[%clk 0:00:02]} 39. Rg1+ {[%clk 0:00:22]}  Kf7 {[%clk 0:00:03]} 40. Reg2 {[%clk 0:00:22]}  Be4 {[%clk 0:00:03]} 41. Rg7+ {[%clk 0:00:21]}  Ke6 {[%clk 0:00:04]} 42. Rxc7 {[%clk 0:00:22]}  Qxb3+ {[%clk 0:00:05]} 43. Kc1 {[%clk 0:00:22]}  Qe3+ {[%clk 0:00:05]} 44. Kb2 {[%clk 0:00:22]}  Qxg1 {[%clk 0:00:06]} 45. Rc4 {[%clk 0:00:22]}  Qb6+ {[%clk 0:00:06]} 46. Kc3 {[%clk 0:00:22]}  Bd5 {[%clk 0:00:06]} 47. Rh4 {[%clk 0:00:21]}  Qa5+ {[%clk 0:00:07]} 48. Kb2 {[%clk 0:00:21]}  Qe1 {[%clk 0:00:08]} 49. Rxh6 {[%clk 0:00:21]}  Qe5+ {[%clk 0:00:08]} 50. Ka3 {[%clk 0:00:20]}  Qe3+ {[%clk 0:00:09]} 51. Kb4 {[%clk 0:00:20]}  Qxh6 {[%clk 0:00:09]} 0-1


[Site "https://www.chess.com"]

[Event "Titled Tuesday Blitz April 18 Early 2023"]
[White "Coenen, Michael"]
[Black "Karthik Rajaa"]
[WhiteFideId "4697367"]
[BlackFideId "25035215"]
[WhiteElo "2328"]
[BlackElo "2215"]
[Result "0-1"]
[Round "06"]
[TimeControl "180+2"]
[Date "2023.04.18"]
[WhiteClock "0:00:04"]
[BlackClock "0:00:08"]

1. e4 {[%clk 0:03:00]}  c6 {[%clk 0:03:00]} 2. d4 {[%clk 0:03:00]}  d5 {[%clk 0:03:00]} 3. exd5 {[%clk 0:03:01]}  cxd5 {[%clk 0:03:00]} 4. Bd3 {[%clk 0:03:02]}  Nc6 {[%clk 0:03:00]} 5. c3 {[%clk 0:03:02]}  Nf6 {[%clk 0:02:58]} 6. h3 {[%clk 0:03:02]}  e5 {[%clk 0:02:55]} 7. dxe5 {[%clk 0:03:03]}  Nxe5 {[%clk 0:02:55]} 8. Nf3 {[%clk 0:03:04]}  Nxd3+ {[%clk 0:02:55]} 9. Qxd3 {[%clk 0:03:05]}  Bd6 {[%clk 0:02:53]} 10. O-O {[%clk 0:03:03]}  O-O {[%clk 0:02:54]} 11. Bg5 {[%clk 0:03:04]}  h6 {[%clk 0:02:54]} 12. Bxf6 {[%clk 0:03:03]}  Qxf6 {[%clk 0:02:53]} 13. Qxd5 {[%clk 0:03:04]}  Rd8 {[%clk 0:02:49]} 14. Qh5 {[%clk 0:02:34]}  Bf5 {[%clk 0:02:37]} 15. Nbd2 {[%clk 0:02:28]}  Bf4 {[%clk 0:02:35]} 16. Nb3 {[%clk 0:02:15]}  g6 {[%clk 0:02:33]} 17. Qh4 {[%clk 0:02:14]}  g5 {[%clk 0:02:26]} 18. Qh5 {[%clk 0:02:13]}  Kg7 {[%clk 0:02:13]} 19. Nfd4 {[%clk 0:02:07]}  Bg6 {[%clk 0:02:05]} 20. Qf3 {[%clk 0:02:07]}  a5 {[%clk 0:01:34]} 21. a4 {[%clk 0:01:57]}  Qb6 {[%clk 0:01:25]} 22. Rad1 {[%clk 0:01:23]}  Re8 {[%clk 0:01:22]} 23. Rfe1 {[%clk 0:01:19]}  Kh7 {[%clk 0:01:13]} 24. g3 {[%clk 0:00:53]}  Be5 {[%clk 0:01:11]} 25. Qd5 {[%clk 0:00:52]}  Bxd4 {[%clk 0:00:58]} 26. Nxd4 {[%clk 0:00:25]}  Qxb2 {[%clk 0:00:58]} 27. Nb5 {[%clk 0:00:23]}  Qc2 {[%clk 0:00:43]} 28. Rc1 {[%clk 0:00:20]}  Rxe1+ {[%clk 0:00:39]} 29. Rxe1 {[%clk 0:00:21]}  Qxa4 {[%clk 0:00:39]} 30. Qxb7 {[%clk 0:00:21]}  Rd8 {[%clk 0:00:28]} 31. Nd4 {[%clk 0:00:21]}  Qc4 {[%clk 0:00:24]} 32. Re3 {[%clk 0:00:17]}  a4 {[%clk 0:00:20]} 33. Qa7 {[%clk 0:00:18]}  Rf8 {[%clk 0:00:13]} 34. Qe7 {[%clk 0:00:17]}  Kg8 {[%clk 0:00:13]} 35. Kh2 {[%clk 0:00:15]}  Qa6 {[%clk 0:00:12]} 36. Qa3 {[%clk 0:00:15]}  Ra8 {[%clk 0:00:11]} 37. Nf3 {[%clk 0:00:14]}  Qf6 {[%clk 0:00:12]} 38. Kg2 {[%clk 0:00:13]}  Qc6 {[%clk 0:00:11]} 39. Kh2 {[%clk 0:00:13]}  Rb8 {[%clk 0:00:12]} 40. Ne5 {[%clk 0:00:13]}  Qf6 {[%clk 0:00:11]} 41. Kg2 {[%clk 0:00:10]}  Re8 {[%clk 0:00:10]} 42. Qc5 {[%clk 0:00:08]}  Qf5 {[%clk 0:00:09]} 43. Nd3 {[%clk 0:00:06]}  Rxe3 {[%clk 0:00:07]} 44. fxe3 {[%clk 0:00:04]}  Qxd3 {[%clk 0:00:07]} 45. Qc8+ {[%clk 0:00:05]}  Kh7 {[%clk 0:00:08]} 46. Qc7 {[%clk 0:00:04]}  Be4+ {[%clk 0:00:08]} 0-1


[Site "https://www.chess.com"]

[Event "Titled Tuesday Blitz April 18 Early 2023"]
[White "Stepanencu, Nicodim-Cosmin"]
[Black "Tregubov, Pavel V."]
[WhiteFideId "1256220"]
[BlackFideId "4115341"]
[WhiteElo "2185"]
[BlackElo "2425"]
[Result "0-1"]
[Round "06"]
[TimeControl "180+2"]
[Date "2023.04.18"]
[WhiteClock "0:00:02"]
[BlackClock "0:00:31"]

1. Nf3 {[%clk 0:02:59]}  Nf6 {[%clk 0:02:58]} 2. g3 {[%clk 0:02:58]}  c5 {[%clk 0:02:57]} 3. Bg2 {[%clk 0:02:57]}  Nc6 {[%clk 0:02:57]} 4. O-O {[%clk 0:02:58]}  e5 {[%clk 0:02:57]} 5. e4 {[%clk 0:02:56]}  g6 {[%clk 0:02:57]} 6. d3 {[%clk 0:02:53]}  Bg7 {[%clk 0:02:57]} 7. a3 {[%clk 0:02:52]}  O-O {[%clk 0:02:56]} 8. Nc3 {[%clk 0:02:52]}  d6 {[%clk 0:02:53]} 9. Rb1 {[%clk 0:02:52]}  a5 {[%clk 0:02:51]} 10. h3 {[%clk 0:02:51]}  h6 {[%clk 0:02:50]} 11. Be3 {[%clk 0:02:50]}  Be6 {[%clk 0:02:48]} 12. Qd2 {[%clk 0:02:49]}  Kh7 {[%clk 0:02:47]} 13. Nb5 {[%clk 0:02:40]}  a4 {[%clk 0:02:36]} 14. c3 {[%clk 0:02:30]}  Ra5 {[%clk 0:02:25]} 15. c4 {[%clk 0:02:29]}  Ra8 {[%clk 0:02:06]} 16. Ne1 {[%clk 0:02:22]}  Nd4 {[%clk 0:01:58]} 17. Bxd4 {[%clk 0:02:21]}  cxd4 {[%clk 0:01:37]} 18. f4 {[%clk 0:02:22]}  Bd7 {[%clk 0:01:38]} 19. Nxd6 {[%clk 0:02:19]}  Nh5 {[%clk 0:01:30]} 20. fxe5 {[%clk 0:02:13]}  Nxg3 {[%clk 0:01:22]} 21. Rf3 {[%clk 0:01:43]}  Nh5 {[%clk 0:01:22]} 22. Nxf7 {[%clk 0:01:32]}  Qe7 {[%clk 0:01:19]} 23. Qf2 {[%clk 0:01:33]}  Be6 {[%clk 0:01:11]} 24. Nd6 {[%clk 0:01:30]}  Bxe5 {[%clk 0:01:07]} 25. Nb5 {[%clk 0:01:28]}  Nf4 {[%clk 0:00:55]} 26. Qd2 {[%clk 0:00:49]}  g5 {[%clk 0:00:54]} 27. Qb4 {[%clk 0:00:40]}  Qg7 {[%clk 0:00:50]} 28. Qc5 {[%clk 0:00:34]}  Rac8 {[%clk 0:00:48]} 29. Qb6 {[%clk 0:00:26]}  g4 {[%clk 0:00:45]} 30. hxg4 {[%clk 0:00:15]}  Bxg4 {[%clk 0:00:45]} 31. Rf2 {[%clk 0:00:10]}  Rc6 {[%clk 0:00:43]} 32. Qa7 {[%clk 0:00:05]}  Rg6 {[%clk 0:00:42]} 33. Kh1 {[%clk 0:00:04]}  Nxg2 {[%clk 0:00:35]} 34. Rxf8 {[%clk 0:00:04]}  Qxf8 {[%clk 0:00:35]} 35. Nxg2 {[%clk 0:00:03]}  Bf3 {[%clk 0:00:35]} 36. Rg1 {[%clk 0:00:02]}  Qe7 {[%clk 0:00:31]} 37. Qb6 {[%clk 0:00:02]} 0-1


[Site "https://www.chess.com"]

[Event "Titled Tuesday Blitz April 18 Early 2023"]
[White "Malek, Jan"]
[Black "Jumanov, Elbek"]
[WhiteFideId "21864080"]
[BlackFideId "14202905"]
[WhiteElo "2255"]
[BlackElo "2055"]
[Result "0-1"]
[Round "06"]
[TimeControl "180+2"]
[Date "2023.04.18"]
[WhiteClock "0:00:12"]
[BlackClock "0:00:18"]

1. f4 {[%clk 0:03:00]}  c5 {[%clk 0:03:00]} 2. Nf3 {[%clk 0:03:01]}  e6 {[%clk 0:02:57]} 3. g3 {[%clk 0:03:01]}  Nc6 {[%clk 0:02:56]} 4. Bg2 {[%clk 0:03:02]}  Nf6 {[%clk 0:02:56]} 5. O-O {[%clk 0:03:02]}  Be7 {[%clk 0:02:56]} 6. d3 {[%clk 0:03:03]}  O-O {[%clk 0:02:56]} 7. e4 {[%clk 0:03:03]}  d5 {[%clk 0:02:56]} 8. Nc3 {[%clk 0:03:03]}  Rb8 {[%clk 0:02:55]} 9. e5 {[%clk 0:02:58]}  Nd7 {[%clk 0:02:54]} 10. d4 {[%clk 0:02:55]}  cxd4 {[%clk 0:02:51]} 11. Nxd4 {[%clk 0:02:55]}  Nxd4 {[%clk 0:02:51]} 12. Kh1 {[%clk 0:02:48]}  Nc6 {[%clk 0:02:48]} 13. h4 {[%clk 0:02:42]}  b5 {[%clk 0:02:42]} 14. h5 {[%clk 0:02:41]}  b4 {[%clk 0:02:41]} 15. Ne2 {[%clk 0:02:40]}  f5 {[%clk 0:02:36]} 16. h6 {[%clk 0:02:23]}  g5 {[%clk 0:02:24]} 17. fxg5 {[%clk 0:02:19]}  Bxg5 {[%clk 0:02:23]} 18. Nf4 {[%clk 0:02:11]}  Ndxe5 {[%clk 0:02:17]} 19. b3 {[%clk 0:02:03]}  Bxh6 {[%clk 0:02:04]} 20. Bb2 {[%clk 0:01:59]}  Qg5 {[%clk 0:01:59]} 21. Nxd5 {[%clk 0:01:36]}  exd5 {[%clk 0:01:20]} 22. Qxd5+ {[%clk 0:01:32]}  Nf7 {[%clk 0:01:20]} 23. Qxc6 {[%clk 0:01:12]}  Bb7 {[%clk 0:00:33]} 24. Qe6 {[%clk 0:01:00]}  Bxg2+ {[%clk 0:00:29]} 25. Kxg2 {[%clk 0:00:59]}  Rb6 {[%clk 0:00:29]} 26. Qc4 {[%clk 0:00:47]}  Rg6 {[%clk 0:00:27]} 27. Rf3 {[%clk 0:00:45]}  Qd2+ {[%clk 0:00:23]} 28. Rf2 {[%clk 0:00:43]}  Qe3 {[%clk 0:00:22]} 29. Rf3 {[%clk 0:00:36]}  Qe4 {[%clk 0:00:21]} 30. Qd3 {[%clk 0:00:05]}  Qxd3 {[%clk 0:00:18]} 31. cxd3 {[%clk 0:00:06]}  f4 {[%clk 0:00:18]} 32. Re1 {[%clk 0:00:04]}  Rxg3+ {[%clk 0:00:16]} 33. Rxg3+ {[%clk 0:00:04]}  fxg3 {[%clk 0:00:17]} 34. Re6 {[%clk 0:00:04]}  Bg7 {[%clk 0:00:17]} 35. Bc1 {[%clk 0:00:04]}  Rd8 {[%clk 0:00:16]} 36. Be3 {[%clk 0:00:01]}  Bc3 {[%clk 0:00:14]} 37. Bxa7 {[%clk 0:00:01]}  Rxd3 {[%clk 0:00:14]} 38. Bb8 {[%clk 0:00:01]}  h5 {[%clk 0:00:14]} 39. Kh3 {[%clk 0:00:02]}  g2+ {[%clk 0:00:13]} 40. Kxg2 {[%clk 0:00:01]}  Rd2+ {[%clk 0:00:14]} 41. Kh3 {[%clk 0:00:02]}  Ng5+ {[%clk 0:00:14]} 42. Kh4 {[%clk 0:00:02]}  Nxe6 {[%clk 0:00:15]} 43. Kxh5 {[%clk 0:00:03]}  Rxa2 {[%clk 0:00:15]} 44. Kg6 {[%clk 0:00:04]}  Rb2 {[%clk 0:00:15]} 45. Kf5 {[%clk 0:00:05]}  Rxb3 {[%clk 0:00:16]} 46. Ke4 {[%clk 0:00:06]}  Rb1 {[%clk 0:00:17]} 47. Kd5 {[%clk 0:00:06]}  b3 {[%clk 0:00:17]} 48. Kc4 {[%clk 0:00:07]}  b2 {[%clk 0:00:18]} 49. Kb3 {[%clk 0:00:08]}  Rc1 {[%clk 0:00:17]} 50. Be5 {[%clk 0:00:08]}  b1=Q+ {[%clk 0:00:18]} 51. Kc4 {[%clk 0:00:09]}  Bxe5+ {[%clk 0:00:18]} 52. Kd5 {[%clk 0:00:10]}  Qb5+ {[%clk 0:00:18]} 53. Ke4 {[%clk 0:00:10]}  Rc4+ {[%clk 0:00:18]} 54. Kf5 {[%clk 0:00:11]}  Bd6+ {[%clk 0:00:18]} 55. Kg6 {[%clk 0:00:12]}  Qg5# {[%clk 0:00:18]} 0-1


[Site "https://www.chess.com"]